[Event "*** Titled Tuesday Blitz"]
[Site "Chess.com"]
[Date "2020.05.12"]
[Round "2"]
[White "realmadridtv"]
[Black "MalakhovKirill"]
[Result "1-0"]
[WhiteElo "2454"]
[BlackElo "2648"]
[TimeControl "180+1"]
[EndTime "10:18:17 PDT"]
[Termination "realmadridtv won by checkmate"]

1. d4 {[%clk 0:03:00.9]} 1... Nf6 {[%clk 0:02:57.6]} 2. c4 {[%clk 0:03:00.6]}
2... e6 {[%clk 0:02:56.9]} 3. g3 {[%clk 0:03:01]} 3... c5 {[%clk 0:02:50.4]} 4.
d5 {[%clk 0:03:00.7]} 4... b5 {[%clk 0:02:47.1]} 5. Bg2 {[%clk 0:02:58.5]} 5...
Bb7 {[%clk 0:02:46.2]} 6. e4 {[%clk 0:02:54.5]} 6... bxc4 {[%clk 0:02:43.2]} 7.
Ne2 {[%clk 0:02:54.2]} 7... d6 {[%clk 0:02:36.6]} 8. O-O {[%clk 0:02:53.3]} 8...
e5 {[%clk 0:02:29.4]} 9. Nd2 {[%clk 0:02:45.9]} 9... Be7 {[%clk 0:02:22.1]} 10.
Nxc4 {[%clk 0:02:44.6]} 10... O-O {[%clk 0:02:22.1]} 11. f4 {[%clk 0:02:44]}
11... Nfd7 {[%clk 0:02:16.6]} 12. Bd2 {[%clk 0:02:20.6]} 12... Ba6 {[%clk
0:01:54.4]} 13. b3 {[%clk 0:02:13.2]} 13... Nb6 {[%clk 0:01:49.3]} 14. Rc1
{[%clk 0:02:10]} 14... Nxc4 {[%clk 0:01:44.8]} 15. bxc4 {[%clk 0:02:08.8]} 15...
Nd7 {[%clk 0:01:45.1]} 16. f5 {[%clk 0:02:06]} 16... Bg5 {[%clk 0:01:41.1]} 17.
h4 {[%clk 0:02:06]} 17... Bxd2 {[%clk 0:01:41]} 18. Qxd2 {[%clk 0:02:06.9]}
18... Nb6 {[%clk 0:01:41.2]} 19. Qd3 {[%clk 0:01:58.6]} 19... Qd7 {[%clk
0:01:41]} 20. Rc2 {[%clk 0:01:46.7]} 20... f6 {[%clk 0:01:34]} 21. g4 {[%clk
0:01:40.5]} 21... Qa4 {[%clk 0:01:33.5]} 22. Rfc1 {[%clk 0:01:39.1]} 22... Rab8
{[%clk 0:01:33]} 23. g5 {[%clk 0:01:36.7]} 23... Nd7 {[%clk 0:01:27.7]} 24. Qg3
{[%clk 0:01:24.7]} 24... Rb4 {[%clk 0:01:24.1]} 25. Nc3 {[%clk 0:01:09.9]} 25...
Qa3 {[%clk 0:01:18.9]} 26. Bf1 {[%clk 0:01:02.3]} 26... Bxc4 {[%clk 0:01:13.5]}
27. h5 {[%clk 0:00:47]} 27... Bxf1 {[%clk 0:01:12.2]} 28. h6 {[%clk 0:00:44.5]}
28... Ba6 {[%clk 0:00:41.6]} 29. g6 {[%clk 0:00:32.9]} 29... Rd4 {[%clk
0:00:18.3]} 30. gxh7+ {[%clk 0:00:30.3]} 30... Kf7 {[%clk 0:00:18.3]} 31. hxg7
{[%clk 0:00:28.3]} 31... Rd3 {[%clk 0:00:16.7]} 32. g8=Q+ {[%clk 0:00:25.3]}
32... Ke7 {[%clk 0:00:17.1]} 33. Q3g7+ {[%clk 0:00:23.9]} 33... Kd8 {[%clk
0:00:17.3]} 34. Q8xf8+ {[%clk 0:00:22.9]} 34... Nxf8 {[%clk 0:00:17.8]} 35.
Qxf8+ {[%clk 0:00:23.6]} 35... Kc7 {[%clk 0:00:18.7]} 36. h8=Q {[%clk
0:00:20.7]} 36... Rg3+ {[%clk 0:00:18.8]} 37. Kh2 {[%clk 0:00:20.5]} 37... Rxc3
{[%clk 0:00:19.3]} 38. Qd8+ {[%clk 0:00:18.5]} 38... Kb7 {[%clk 0:00:19.5]} 39.
Qb8# {[%clk 0:00:18.4]} 1-0

[Event "*** Titled Tuesday Blitz"]
[Site "Chess.com"]
[Date "2020.05.12"]
[Round "2"]
[White "giantslayer83"]
[Black "Ladislav1969"]
[Result "1-0"]
[WhiteElo "2709"]
[BlackElo "2329"]
[TimeControl "180+1"]
[EndTime "10:18:17 PDT"]
[Termination "giantslayer83 won on time"]

1. d4 {[%clk 0:03:00.9]} 1... Nf6 {[%clk 0:02:59.5]} 2. Bg5 {[%clk 0:02:55.3]}
2... d5 {[%clk 0:02:56.3]} 3. Be3 {[%clk 0:02:42.6]} 3... g6 {[%clk 0:02:52.6]}
4. Nc3 {[%clk 0:02:37]} 4... b6 {[%clk 0:02:50.2]} 5. Bg5 {[%clk 0:02:36.1]}
5... Bg7 {[%clk 0:02:48.9]} 6. e3 {[%clk 0:02:35]} 6... Bb7 {[%clk 0:02:48.6]}
7. h4 {[%clk 0:02:34.7]} 7... c5 {[%clk 0:02:45.5]} 8. Nf3 {[%clk 0:02:33.1]}
8... Nbd7 {[%clk 0:02:35.8]} 9. Ne5 {[%clk 0:02:22]} 9... h6 {[%clk 0:02:30.9]}
10. Bxf6 {[%clk 0:02:21.7]} 10... Bxf6 {[%clk 0:02:17.4]} 11. f4 {[%clk
0:02:12.9]} 11... e6 {[%clk 0:02:09]} 12. Bb5 {[%clk 0:02:03.1]} 12... Bxh4+
{[%clk 0:02:06.8]} 13. Kf1 {[%clk 0:02:01.1]} 13... Bc8 {[%clk 0:02:03.7]} 14.
Nxd7 {[%clk 0:01:46]} 14... Bxd7 {[%clk 0:02:02.7]} 15. Bxd7+ {[%clk 0:01:45.9]}
15... Kxd7 {[%clk 0:02:03.1]} 16. Qg4 {[%clk 0:01:45.6]} 16... Bf6 {[%clk
0:01:56.1]} 17. Nxd5 {[%clk 0:01:45.1]} 17... cxd4 {[%clk 0:01:34.8]} 18. Rd1
{[%clk 0:01:39.9]} 18... Rc8 {[%clk 0:01:34.9]} 19. c3 {[%clk 0:01:36.9]} 19...
h5 {[%clk 0:01:25.5]} 20. Qh3 {[%clk 0:01:35.5]} 20... Rc5 {[%clk 0:01:08.6]}
21. Nxf6+ {[%clk 0:01:23.7]} 21... Qxf6 {[%clk 0:01:08.6]} 22. Rxd4+ {[%clk
0:01:22.1]} 22... Ke7 {[%clk 0:01:09.2]} 23. Ke2 {[%clk 0:01:21.9]} 23... Rd8
{[%clk 0:01:01.9]} 24. Rhd1 {[%clk 0:01:18.3]} 24... Rxd4 {[%clk 0:00:56.3]} 25.
Rxd4 {[%clk 0:01:19.2]} 25... Rb5 {[%clk 0:00:54.9]} 26. b4 {[%clk 0:01:15.5]}
26... a5 {[%clk 0:00:32.8]} 27. a4 {[%clk 0:01:14.2]} 27... Rf5 {[%clk
0:00:31.8]} 28. Qf3 {[%clk 0:01:07.4]} 28... Rd5 {[%clk 0:00:28.6]} 29. Rxd5
{[%clk 0:00:58.1]} 29... exd5 {[%clk 0:00:28.8]} 30. Qxd5 {[%clk 0:00:37.8]}
30... Qxc3 {[%clk 0:00:28.7]} 31. Qe4+ {[%clk 0:00:35.4]} 31... Kf8 {[%clk
0:00:26.6]} 32. b5 {[%clk 0:00:35.3]} 32... h4 {[%clk 0:00:20.4]} 33. Kf3 {[%clk
0:00:35]} 33... Qe1 {[%clk 0:00:17.5]} 34. Qc2 {[%clk 0:00:19.8]} 34... Qg3+
{[%clk 0:00:10]} 35. Ke4 {[%clk 0:00:19.5]} 35... Kg7 {[%clk 0:00:05]} 36. Qb2+
{[%clk 0:00:19.5]} 36... f6 {[%clk 0:00:03.4]} 37. Qc2 {[%clk 0:00:18.9]} 1-0

[Event "*** Titled Tuesday Blitz"]
[Site "Chess.com"]
[Date "2020.05.12"]
[Round "2"]
[White "ural58"]
[Black "Juanovic"]
[Result "1-0"]
[WhiteElo "2424"]
[BlackElo "2163"]
[TimeControl "180+1"]
[EndTime "10:18:17 PDT"]
[Termination "ural58 won by resignation"]

1. e4 {[%clk 0:03:00.9]} 1... c5 {[%clk 0:02:59.5]} 2. b3 {[%clk 0:03:00.7]}
2... Nc6 {[%clk 0:02:58.6]} 3. Bb2 {[%clk 0:03:00.8]} 3... d6 {[%clk 0:02:58.7]}
4. f4 {[%clk 0:03:00.4]} 4... e6 {[%clk 0:02:56.6]} 5. Nc3 {[%clk 0:02:59.4]}
5... Nf6 {[%clk 0:02:56.3]} 6. Qe2 {[%clk 0:02:57.5]} 6... Be7 {[%clk
0:02:53.5]} 7. O-O-O {[%clk 0:02:57.5]} 7... O-O {[%clk 0:02:53]} 8. g4 {[%clk
0:02:57.5]} 8... Nd4 {[%clk 0:02:52.7]} 9. Qg2 {[%clk 0:02:57.3]} 9... d5 {[%clk
0:02:50.7]} 10. g5 {[%clk 0:02:52.7]} 10... Nxe4 {[%clk 0:02:50.3]} 11. Nxe4
{[%clk 0:02:53.6]} 11... dxe4 {[%clk 0:02:50.6]} 12. Qxe4 {[%clk 0:02:54.5]}
12... Qd5 {[%clk 0:02:43.7]} 13. Bd3 {[%clk 0:02:50.6]} 13... Qxe4 {[%clk
0:02:43.5]} 14. Bxe4 {[%clk 0:02:51.5]} 14... f6 {[%clk 0:02:38]} 15. Bxd4
{[%clk 0:02:37.2]} 15... cxd4 {[%clk 0:02:37.3]} 16. Nf3 {[%clk 0:02:38.1]}
16... Bc5 {[%clk 0:02:29.1]} 17. b4 {[%clk 0:02:26.5]} 17... Bb6 {[%clk
0:02:28.4]} 18. g6 {[%clk 0:01:59.9]} 18... h6 {[%clk 0:02:21.3]} 19. f5 {[%clk
0:01:59.2]} 19... a5 {[%clk 0:02:20.7]} 20. b5 {[%clk 0:01:57.2]} 20... exf5
{[%clk 0:02:19.3]} 21. Bd5+ {[%clk 0:01:57.4]} 21... Kh8 {[%clk 0:02:18]} 22.
Rde1 {[%clk 0:01:57.6]} 22... Bc5 {[%clk 0:02:13.1]} 23. a4 {[%clk 0:01:50.5]}
23... Rb8 {[%clk 0:02:11.6]} 24. Rhf1 {[%clk 0:01:38]} 24... Bd7 {[%clk
0:02:07]} 25. Nh4 {[%clk 0:01:37.1]} 25... b6 {[%clk 0:01:59.6]} 26. Bc6 {[%clk
0:01:27.3]} 26... Bxc6 {[%clk 0:01:22]} 27. bxc6 {[%clk 0:01:28.2]} 27... Rfc8
{[%clk 0:01:20]} 28. Re6 {[%clk 0:01:25.8]} 28... b5 {[%clk 0:01:07.2]} 29. axb5
{[%clk 0:01:06.1]} 29... Rxb5 {[%clk 0:01:06.8]} 30. Rfe1 {[%clk 0:01:01.7]}
30... Ba3+ {[%clk 0:01:05.8]} 31. Kd1 {[%clk 0:01:01.8]} 31... Rb1+ {[%clk
0:01:06.3]} 32. Ke2 {[%clk 0:01:02]} 32... Rxe1+ {[%clk 0:01:06.8]} 33. Kxe1
{[%clk 0:01:02.9]} 33... Kg8 {[%clk 0:01:03.6]} 34. Nxf5 {[%clk 0:01:02.4]}
34... Bc5 {[%clk 0:00:57.1]} 35. c7 {[%clk 0:00:54.9]} 35... Rxc7 {[%clk
0:00:51.1]} 36. Re8+ {[%clk 0:00:54.9]} 36... Bf8 {[%clk 0:00:51.1]} 37. Ra8
{[%clk 0:00:51.4]} 37... a4 {[%clk 0:00:38.3]} 38. Rxa4 {[%clk 0:00:48.7]} 38...
Rc5 {[%clk 0:00:38.5]} 39. Nxd4 {[%clk 0:00:45.2]} 39... Rg5 {[%clk 0:00:37.5]}
40. Ra8 {[%clk 0:00:40.4]} 40... Rxg6 {[%clk 0:00:37.6]} 41. Ne6 {[%clk
0:00:40.3]} 41... Kf7 {[%clk 0:00:38]} 42. Nxf8 {[%clk 0:00:40]} 42... Rg2
{[%clk 0:00:37.5]} 43. h4 {[%clk 0:00:39.2]} 43... g5 {[%clk 0:00:36.8]} 44.
hxg5 {[%clk 0:00:38.9]} 44... fxg5 {[%clk 0:00:37.7]} 45. Nd7 {[%clk 0:00:36.1]}
45... Ke6 {[%clk 0:00:36.8]} 46. Nc5+ {[%clk 0:00:36.1]} 46... Kf5 {[%clk
0:00:37.4]} 47. Rf8+ {[%clk 0:00:30.6]} 47... Kg6 {[%clk 0:00:35.9]} 48. Ne4
{[%clk 0:00:30.2]} 48... h5 {[%clk 0:00:35.2]} 49. Nxg5 {[%clk 0:00:27.4]} 49...
Rxg5 {[%clk 0:00:34.1]} 50. Rg8+ {[%clk 0:00:27.3]} 50... Kf5 {[%clk 0:00:35]}
51. Rxg5+ {[%clk 0:00:27.4]} 51... Kxg5 {[%clk 0:00:35.9]} 52. Kf2 {[%clk
0:00:27.9]} 52... Kg4 {[%clk 0:00:34]} 53. Kg2 {[%clk 0:00:28.1]} 53... h4
{[%clk 0:00:29.5]} 54. c4 {[%clk 0:00:27.5]} 54... Kf4 {[%clk 0:00:30.4]} 55. d3
{[%clk 0:00:27.1]} 1-0

[Event "*** Titled Tuesday Blitz"]
[Site "Chess.com"]
[Date "2020.05.12"]
[Round "2"]
[White "Paladin61"]
[Black "GMJustin"]
[Result "0-1"]
[WhiteElo "2655"]
[BlackElo "2342"]
[TimeControl "180+1"]
[EndTime "10:18:18 PDT"]
[Termination "GMJustin won on time"]

1. d4 {[%clk 0:03:00.9]} 1... Nf6 {[%clk 0:02:53.5]} 2. c4 {[%clk 0:03:00.2]}
2... g6 {[%clk 0:02:53.1]} 3. g3 {[%clk 0:02:59.9]} 3... Bg7 {[%clk 0:02:50]} 4.
Bg2 {[%clk 0:02:59.9]} 4... O-O {[%clk 0:02:49.9]} 5. Nc3 {[%clk 0:02:59]} 5...
Nc6 {[%clk 0:02:49.4]} 6. Nf3 {[%clk 0:02:57.4]} 6... d5 {[%clk 0:02:47.9]} 7.
cxd5 {[%clk 0:02:51.5]} 7... Nxd5 {[%clk 0:02:47.4]} 8. O-O {[%clk 0:02:50.8]}
8... Bf5 {[%clk 0:02:44.7]} 9. Ne1 {[%clk 0:02:41.5]} 9... Nxc3 {[%clk 0:02:37]}
10. bxc3 {[%clk 0:02:40.2]} 10... e5 {[%clk 0:01:57.9]} 11. e3 {[%clk
0:02:38.9]} 11... exd4 {[%clk 0:01:38.6]} 12. cxd4 {[%clk 0:02:37.7]} 12... Nxd4
{[%clk 0:01:32.7]} 13. exd4 {[%clk 0:02:33.9]} 13... Qxd4 {[%clk 0:01:27.1]} 14.
Qxd4 {[%clk 0:01:05.8]} 14... Bxd4 {[%clk 0:01:26.4]} 15. Ba3 {[%clk 0:01:04.1]}
15... Bxa1 {[%clk 0:01:24.1]} 16. Bxf8 {[%clk 0:01:03.3]} 16... Rxf8 {[%clk
0:01:17]} 17. Bxb7 {[%clk 0:01:04.2]} 17... Rb8 {[%clk 0:01:12.8]} 18. Bd5
{[%clk 0:01:02.2]} 18... Rb1 {[%clk 0:01:07.4]} 19. Nf3 {[%clk 0:00:56.3]} 19...
Rxf1+ {[%clk 0:01:00.9]} 20. Kxf1 {[%clk 0:00:56.5]} 20... Kg7 {[%clk
0:01:00.2]} 21. Ng5 {[%clk 0:00:52.4]} 21... Bd3+ {[%clk 0:00:38.6]} 22. Kg2
{[%clk 0:00:44]} 22... c5 {[%clk 0:00:37.6]} 23. Nf3 {[%clk 0:00:16.6]} 23... c4
{[%clk 0:00:33.2]} 24. Ne1 {[%clk 0:00:16.4]} 24... Be2 {[%clk 0:00:31.2]} 25.
Bf3 {[%clk 0:00:10.5]} 25... Bxf3+ {[%clk 0:00:25.3]} 26. Kxf3 {[%clk
0:00:10.7]} 26... f5 {[%clk 0:00:24.5]} 27. Nc2 {[%clk 0:00:07.5]} 27... Bb2
{[%clk 0:00:19.6]} 28. Ke3 {[%clk 0:00:07]} 28... Kf6 {[%clk 0:00:19.2]} 29. f4
{[%clk 0:00:04.3]} 29... Ke6 {[%clk 0:00:18.3]} 30. h3 {[%clk 0:00:02.7]} 30...
a5 {[%clk 0:00:18.2]} 31. g4 {[%clk 0:00:03.1]} 31... Kd5 {[%clk 0:00:18.2]} 32.
gxf5 {[%clk 0:00:02.6]} 32... gxf5 {[%clk 0:00:17.7]} 33. Kf3 {[%clk 0:00:02.8]}
33... h5 {[%clk 0:00:17.1]} 34. Ke3 {[%clk 0:00:03.2]} 34... Kc5 {[%clk
0:00:15.5]} 35. Kf3 {[%clk 0:00:03]} 35... c3 {[%clk 0:00:14.6]} 36. Ke3 {[%clk
0:00:02.9]} 36... Kc4 {[%clk 0:00:14.6]} 37. Ke2 {[%clk 0:00:03.2]} 37... Bc1
{[%clk 0:00:14]} 0-1

[Event "*** Titled Tuesday Blitz"]
[Site "Chess.com"]
[Date "2020.05.12"]
[Round "2"]
[White "vaishali2001"]
[Black "alexsergeyev"]
[Result "1-0"]
[WhiteElo "2640"]
[BlackElo "2355"]
[TimeControl "180+1"]
[EndTime "10:18:19 PDT"]
[Termination "vaishali2001 won on time"]

1. e4 {[%clk 0:02:57.8]} 1... e5 {[%clk 0:02:59.3]} 2. Nc3 {[%clk 0:02:56]} 2...
Nf6 {[%clk 0:02:59.2]} 3. Bc4 {[%clk 0:02:56.4]} 3... c6 {[%clk 0:02:58.6]} 4.
Bb3 {[%clk 0:02:27.8]} 4... Bb4 {[%clk 0:02:52.5]} 5. Nge2 {[%clk 0:02:26.8]}
5... O-O {[%clk 0:02:49.9]} 6. O-O {[%clk 0:02:24.6]} 6... d5 {[%clk 0:02:44.4]}
7. exd5 {[%clk 0:02:23.9]} 7... cxd5 {[%clk 0:02:43.8]} 8. d4 {[%clk 0:02:24.3]}
8... e4 {[%clk 0:02:41.3]} 9. Bg5 {[%clk 0:02:16.6]} 9... Be6 {[%clk 0:02:39.8]}
10. Nf4 {[%clk 0:02:10.5]} 10... Bxc3 {[%clk 0:02:38.7]} 11. bxc3 {[%clk
0:02:08.9]} 11... Nc6 {[%clk 0:02:17]} 12. Bxf6 {[%clk 0:01:55.6]} 12... gxf6
{[%clk 0:02:04.4]} 13. Qh5 {[%clk 0:01:51.6]} 13... Ne7 {[%clk 0:01:48.8]} 14.
f3 {[%clk 0:01:46.3]} 14... f5 {[%clk 0:01:26.5]} 15. fxe4 {[%clk 0:01:30.5]}
15... fxe4 {[%clk 0:01:25.6]} 16. Nxe6 {[%clk 0:01:10.9]} 16... fxe6 {[%clk
0:01:22.7]} 17. Qg4+ {[%clk 0:01:11.8]} 17... Kh8 {[%clk 0:01:06.8]} 18. Qxe6
{[%clk 0:01:12.7]} 18... Qc7 {[%clk 0:00:49.3]} 19. Bxd5 {[%clk 0:00:55.7]}
19... e3 {[%clk 0:00:46.4]} 20. Be4 {[%clk 0:00:41.9]} 20... Rf2 {[%clk
0:00:23.7]} 21. Qh3 {[%clk 0:00:23.9]} 21... Ng8 {[%clk 0:00:19.1]} 22. Qxe3
{[%clk 0:00:22.6]} 22... Rxf1+ {[%clk 0:00:18.8]} 23. Rxf1 {[%clk 0:00:23.5]}
23... Re8 {[%clk 0:00:18.4]} 24. Qf3 {[%clk 0:00:21]} 24... Qe7 {[%clk
0:00:16.3]} 25. Bd3 {[%clk 0:00:19.4]} 25... b6 {[%clk 0:00:13.6]} 26. Qf7
{[%clk 0:00:18.5]} 26... Nh6 {[%clk 0:00:12.4]} 27. Qf4 {[%clk 0:00:13.7]} 27...
Qe6 {[%clk 0:00:09.9]} 28. h3 {[%clk 0:00:12.9]} 28... Kg7 {[%clk 0:00:08.5]}
29. Qg5+ {[%clk 0:00:11.7]} 29... Kh8 {[%clk 0:00:08.3]} 30. Qf4 {[%clk
0:00:11.7]} 30... Kg7 {[%clk 0:00:07.9]} 31. Rf3 {[%clk 0:00:12.2]} 31... Nf7
{[%clk 0:00:03.3]} 32. Kh2 {[%clk 0:00:12]} 32... Re7 {[%clk 0:00:01.4]} 33.
Rg3+ {[%clk 0:00:12.1]} 33... Kh8 {[%clk 0:00:01.4]} 34. Qh4 {[%clk 0:00:11.6]}
1-0

[Event "*** Titled Tuesday Blitz"]
[Site "Chess.com"]
[Date "2020.05.12"]
[Round "2"]
[White "Ariadna_Atreides"]
[Black "PotapovaM"]
[Result "0-1"]
[WhiteElo "2081"]
[BlackElo "2396"]
[TimeControl "180+1"]
[EndTime "10:18:21 PDT"]
[Termination "PotapovaM won by resignation"]

1. d4 {[%clk 0:03:00.9]} 1... Nf6 {[%clk 0:02:59.8]} 2. Nf3 {[%clk 0:03:00.6]}
2... e6 {[%clk 0:02:59.1]} 3. e3 {[%clk 0:03:00.1]} 3... b6 {[%clk 0:02:59]} 4.
Bd3 {[%clk 0:02:58]} 4... Bb7 {[%clk 0:02:59]} 5. O-O {[%clk 0:02:58.1]} 5... d6
{[%clk 0:02:55.1]} 6. b3 {[%clk 0:02:57.6]} 6... Nbd7 {[%clk 0:02:55]} 7. Bb2
{[%clk 0:02:57.7]} 7... Be7 {[%clk 0:02:54.5]} 8. Nbd2 {[%clk 0:02:57.1]} 8...
O-O {[%clk 0:02:54.6]} 9. c4 {[%clk 0:02:53.3]} 9... Re8 {[%clk 0:02:54.4]} 10.
Rc1 {[%clk 0:02:51.8]} 10... Bf8 {[%clk 0:02:54.2]} 11. Bb1 {[%clk 0:02:51.3]}
11... e5 {[%clk 0:02:54.2]} 12. d5 {[%clk 0:02:48.5]} 12... a5 {[%clk 0:02:53]}
13. Ng5 {[%clk 0:02:34.5]} 13... g6 {[%clk 0:02:51]} 14. Qc2 {[%clk 0:02:12.5]}
14... Bg7 {[%clk 0:02:46.9]} 15. a3 {[%clk 0:02:04.4]} 15... Rc8 {[%clk
0:02:44]} 16. Rfd1 {[%clk 0:01:40.5]} 16... Nxd5 {[%clk 0:02:41.1]} 17. Nxf7
{[%clk 0:01:32.7]} 17... Kxf7 {[%clk 0:02:39.6]} 18. cxd5 {[%clk 0:01:31.1]}
18... Bxd5 {[%clk 0:02:39.7]} 19. e4 {[%clk 0:01:15.5]} 19... Be6 {[%clk
0:02:37.5]} 20. Nf3 {[%clk 0:01:14.9]} 20... Kg8 {[%clk 0:02:31]} 21. h3 {[%clk
0:01:13.2]} 21... Qe7 {[%clk 0:02:21.8]} 22. Qd2 {[%clk 0:01:02.9]} 22... Nc5
{[%clk 0:02:17.3]} 23. Rc3 {[%clk 0:00:27.3]} 23... Nxb3 {[%clk 0:02:12.9]} 24.
Qc2 {[%clk 0:00:27.5]} 24... Nc5 {[%clk 0:02:11.2]} 25. Bc1 {[%clk 0:00:22.8]}
25... h6 {[%clk 0:02:06.1]} 26. Be3 {[%clk 0:00:21.3]} 26... Qf7 {[%clk
0:02:00.2]} 27. Qd2 {[%clk 0:00:20.5]} 27... a4 {[%clk 0:01:42.8]} 28. Bxh6
{[%clk 0:00:18.5]} 28... Bxh6 {[%clk 0:01:36.5]} 29. Qxh6 {[%clk 0:00:18]} 29...
Qg7 {[%clk 0:01:37.2]} 30. Qe3 {[%clk 0:00:17.2]} 30... Bb3 {[%clk 0:01:29.6]}
31. Rdc1 {[%clk 0:00:16.5]} 31... Rf8 {[%clk 0:01:25.3]} 32. Ng5 {[%clk
0:00:16]} 32... Qf6 {[%clk 0:01:13.5]} 33. Bd3 {[%clk 0:00:14.3]} 33... Kg7
{[%clk 0:01:08.6]} 34. Bc4 {[%clk 0:00:13.2]} 34... Bxc4 {[%clk 0:01:07.3]} 35.
Rxc4 {[%clk 0:00:13.5]} 35... Ne6 {[%clk 0:01:08]} 36. Nf3 {[%clk 0:00:11.9]}
36... Rf7 {[%clk 0:01:03]} 37. Rxa4 {[%clk 0:00:11.4]} 37... Nf4 {[%clk
0:01:00]} 38. Rac4 {[%clk 0:00:10.8]} 38... c5 {[%clk 0:00:57.5]} 39. Qb3 {[%clk
0:00:09.8]} 39... Nxh3+ {[%clk 0:00:54.6]} 40. Kh2 {[%clk 0:00:06.3]} 40... Nxf2
{[%clk 0:00:49.8]} 41. Qxb6 {[%clk 0:00:06]} 41... Qf4+ {[%clk 0:00:43.8]} 42.
Kg1 {[%clk 0:00:06]} 42... Ng4 {[%clk 0:00:36.2]} 43. R4c3 {[%clk 0:00:04.4]}
43... Qg3 {[%clk 0:00:32.3]} 44. Qxd6 {[%clk 0:00:03.9]} 44... Qf2+ {[%clk
0:00:32]} 45. Kh1 {[%clk 0:00:03.8]} 45... Rh8+ {[%clk 0:00:32.2]} 0-1

[Event "*** Titled Tuesday Blitz"]
[Site "Chess.com"]
[Date "2020.05.12"]
[Round "2"]
[White "ameetghasi100"]
[Black "MoonlighT89"]
[Result "0-1"]
[WhiteElo "2725"]
[BlackElo "2520"]
[TimeControl "180+1"]
[EndTime "10:18:22 PDT"]
[Termination "MoonlighT89 won by checkmate"]

1. Nf3 {[%clk 0:03:00.9]} 1... Nf6 {[%clk 0:02:59.8]} 2. g3 {[%clk 0:03:01.8]}
2... e6 {[%clk 0:02:58.9]} 3. Bg2 {[%clk 0:03:02.4]} 3... d5 {[%clk 0:02:59.4]}
4. O-O {[%clk 0:03:03]} 4... Be7 {[%clk 0:03:00]} 5. d3 {[%clk 0:03:03.6]} 5...
O-O {[%clk 0:03:00.3]} 6. Nbd2 {[%clk 0:03:04.5]} 6... c5 {[%clk 0:02:57]} 7. e4
{[%clk 0:03:04.9]} 7... Nc6 {[%clk 0:02:57]} 8. e5 {[%clk 0:03:04.6]} 8... Nd7
{[%clk 0:02:57.2]} 9. Re1 {[%clk 0:03:05.2]} 9... b5 {[%clk 0:02:57.3]} 10. Nf1
{[%clk 0:03:03.2]} 10... b4 {[%clk 0:02:57.5]} 11. h4 {[%clk 0:03:02.5]} 11...
Ba6 {[%clk 0:02:53.8]} 12. Bg5 {[%clk 0:02:57.8]} 12... Rc8 {[%clk 0:02:53]} 13.
N1h2 {[%clk 0:02:54.5]} 13... Bxg5 {[%clk 0:02:30.5]} 14. hxg5 {[%clk
0:02:52.7]} 14... Nd4 {[%clk 0:02:22.5]} 15. Bh3 {[%clk 0:01:45.9]} 15... Qb6
{[%clk 0:01:56.3]} 16. Nd2 {[%clk 0:00:53.3]} 16... c4 {[%clk 0:01:48.2]} 17.
dxc4 {[%clk 0:00:52.5]} 17... Bxc4 {[%clk 0:01:48.3]} 18. Ng4 {[%clk 0:00:43.8]}
18... Qb5 {[%clk 0:01:15]} 19. Nxc4 {[%clk 0:00:32.3]} 19... Qxc4 {[%clk
0:01:14.7]} 20. Bf1 {[%clk 0:00:29.6]} 20... Qc5 {[%clk 0:00:48.6]} 21. Bd3
{[%clk 0:00:28.6]} 21... Nxc2 {[%clk 0:00:32.8]} 22. Rc1 {[%clk 0:00:25.6]}
22... Nxe1 {[%clk 0:00:33.3]} 23. Rxc5 {[%clk 0:00:24.6]} 23... Nxc5 {[%clk
0:00:34.2]} 24. Bxh7+ {[%clk 0:00:21.9]} 24... Kxh7 {[%clk 0:00:33.8]} 25. Qxe1
{[%clk 0:00:22.8]} 25... Ne4 {[%clk 0:00:33.9]} 26. Qxb4 {[%clk 0:00:21.7]}
26... Rc1+ {[%clk 0:00:30]} 27. Kg2 {[%clk 0:00:20.8]} 27... Rfc8 {[%clk
0:00:30.3]} 28. Qe7 {[%clk 0:00:18.7]} 28... Kg6 {[%clk 0:00:29.6]} 29. Ne3
{[%clk 0:00:12.5]} 29... Re1 {[%clk 0:00:21.6]} 30. Qb7 {[%clk 0:00:10.6]} 30...
Rcc1 {[%clk 0:00:19.3]} 31. Qa6 {[%clk 0:00:08]} 31... Rg1+ {[%clk 0:00:18.8]}
32. Kf3 {[%clk 0:00:07.8]} 32... Rce1 {[%clk 0:00:18.3]} 33. Nxd5 {[%clk
0:00:07.2]} 33... Nxg5+ {[%clk 0:00:17.8]} 34. Kg4 {[%clk 0:00:07.1]} 34... Rxe5
{[%clk 0:00:12.6]} 35. Nf4+ {[%clk 0:00:06.5]} 35... Kh6 {[%clk 0:00:08]} 36.
Qd6 {[%clk 0:00:06.9]} 36... f5+ {[%clk 0:00:08.2]} 37. Kh4 {[%clk 0:00:06.7]}
37... Rh1+ {[%clk 0:00:08.7]} 38. Nh3 {[%clk 0:00:06.8]} 38... Rxh3# {[%clk
0:00:09.6]} 0-1